bitfinex/quotes_BTCUSD_20220211
["timestamp","ask_amount","ask_price","bid_price","bid_amount"]
[1644591264518,0.30456892,43814.0,43811.0,0.05708297]
[1644591264722,0.30456892,43814.0,43812.0,0.057084]
[1644591264917,0.5952107,43814.0,43811.0,0.05708297]
[1644591265718,0.22385696,43812.0,43811.0,0.11416734]
[1644591266366,0.5952107,43814.0,43805.0,0.05]
[1644591266367,0.5952107,43814.0,43809.0,0.05709728]
[1644591266568,0.08079808,43811.0,43809.0,0.05709728]
[1644591266767,0.72523782,43814.0,43813.0,0.16159615]
[1644591267372,0.92749278,43814.0,43813.0,0.16159615]
[1644591268475,0.4206689,43814.0,43813.0,0.16159615]
[1644591268870,0.4206689,43814.0,43813.0,0.21159615]
[1644591269373,0.35,43807.0,43800.0,0.3]
[1644591269633,0.86591733,43814.0,43790.0,0.3]
[1644591269634,0.0704029,43791.0,43790.0,0.3]
[1644591269824,0.0421,43804.0,43790.0,0.3]
[1644591270025,0.0421,43804.0,43799.0,0.3815816]
[1644591270224,0.057123,43801.0,43800.0,0.30690938]
[1644591270431,0.24685289,43811.0,43800.0,0.30690938]
[1644591270432,0.0421,43814.0,43800.0,0.66401754]
[1644591270625,0.114204,43814.0,43800.0,0.60690938]
[1644591270925,0.18303649,43814.0,43801.0,0.057101]
[1644591271126,0.05,43823.0,43811.0,0.28784937]
[1644591271334,0.05,43823.0,43812.0,0.322128]
[1644591271335,0.057084,43821.0,43812.0,0.322128]
[1644591271627,0.057084,43821.0,43814.0,0.322128]
[1644591271628,0.32227748,43817.0,43814.0,0.322128]
[1644591271827,0.32227748,43817.0,43811.0,0.05]
[1644591272025,0.001,43817.0,43811.0,0.05]
[1644591272624,0.001,43817.0,43813.0,0.30166556]
[1644591272826,0.001,43817.0,43814.0,0.26404538]
[1644591272827,0.00171208,43817.0,43814.0,0.26404538]
[1644591273024,0.30541773,43816.0,43815.0,0.057088]
[1644591273468,0.30541773,43816.0,43814.0,0.1141714]
[1644591274569,0.34179937,43815.0,43814.0,0.1141714]
[1644591274770,0.34179937,43815.0,43809.0,0.11418674]
[1644591274970,0.057103,43814.0,43807.0,0.05]
[1644591275169,0.07354136,43813.0,43807.0,0.05]
[1644591275369,0.057102,43811.0,43807.0,0.05]
[1644591275569,0.26233179,43810.0,43807.0,0.05]
[1644591275768,0.37493323,43808.0,43807.0,0.05]
[1644591275969,0.114212,43811.0,43807.0,0.05]
[1644591276272,0.00069048,43812.0,43808.0,0.736302]
[1644591276471,0.00069048,43812.0,43811.0,0.322128]
[1644591276968,0.001,43817.0,43812.0,0.322128]
[1644591277226,0.00064677,43814.0,43811.0,0.1]
[1644591277826,0.00064677,43814.0,43812.0,0.057089]
[1644591278026,0.001,43817.0,43812.0,0.057089]
[1644591278426,0.00064676,43815.0,43813.0,0.322128]
[1644591278625,0.00064676,43815.0,43814.0,0.31883458]
[1644591278827,0.00064676,43815.0,43814.0,0.74096258]
[1644591279028,0.00064676,43815.0,43814.0,0.79803758]
[1644591279525,0.001,43817.0,43816.0,0.35153386]
[1644591279727,0.00164675,43817.0,43816.0,0.62431891]
[1644591279927,0.00164675,43817.0,43816.0,0.72431891]
[1644591280528,0.001,43817.0,43816.0,0.62431891]
[1644591280729,0.001,43817.0,43815.0,0.057072]
[1644591280968,0.058089,43817.0,43814.0,0.05257086]
[1644591281365,0.001,43817.0,43814.0,0.09467086]
[1644591281570,0.001,43817.0,43808.0,0.114177]
[1644591281571,0.25448692,43816.0,43808.0,0.114177]
[1644591281766,0.25448692,43816.0,43800.0,0.0001]
[1644591281967,0.08688427,43805.0,43800.0,0.37903666]
[1644591282568,0.08688427,43805.0,43801.0,0.38460582]
[1644591282967,0.32554071,43811.0,43803.0,0.05710297]
[1644591283170,0.00041429,43807.0,43803.0,0.05710297]
[1644591284070,0.36476759,43810.0,43803.0,0.05710297]
[1644591284267,0.36476759,43810.0,43804.0,0.057094]
[1644591284268,0.47186359,43810.0,43804.0,0.057094]
[1644591284468,0.00069037,43807.0,43805.0,0.05709464]
[1644591285317,0.12704574,43810.0,43805.0,0.05709464]
[1644591285516,0.12704574,43810.0,43804.0,0.05]
[1644591286724,0.1654,43819.0,43804.0,0.05]
[1644591286725,0.22858673,43822.0,43807.0,0.322128]
[1644591286920,0.22858673,43822.0,43813.0,0.32245285]
[1644591287118,0.22858673,43822.0,43814.0,0.60890022]
[1644591287318,0.22858673,43822.0,43814.0,0.70890022]
[1644591287518,0.05,43823.0,43814.0,0.70890022]
[1644591287720,0.08190961,43819.0,43814.0,0.70890022]
[1644591288371,0.051,43817.0,43814.0,0.70890022]
[1644591288771,0.051,43817.0,43815.0,0.322128]
[1644591289374,0.001,43817.0,43815.0,0.322128]
[1644591289571,0.001,43817.0,43816.0,0.58221571]
[1644591289770,0.001,43817.0,43816.0,0.68221571]
[1644591290571,0.001,43817.0,43816.0,0.94628038]
[1644591290771,0.051,43817.0,43816.0,0.68221571]
[1644591291073,0.051,43817.0,43816.0,0.422128]
[1644591291472,0.051,43817.0,43816.0,0.322128]
[1644591291671,0.051,43817.0,43816.0,0.422128]
[1644591292121,0.051,43817.0,43816.0,0.322128]
[1644591292518,0.051,43817.0,43811.0,0.05709105]
[1644591292519,0.057088,43816.0,43811.0,0.05709105]
[1644591292719,0.057088,43816.0,43809.0,0.11417723]
[1644591292917,0.31494892,43811.0,43809.0,0.11417723]
[1644591293117,0.31494892,43811.0,43810.0,0.322128]
[1644591293118,0.36494892,43811.0,43810.0,0.322128]
[1644591293320,0.64910949,43811.0,43799.0,0.38788695]
[1644591293520,0.70620249,43811.0,43800.0,0.114299]
[1644591293720,0.07548253,43804.0,43802.0,0.05710282]
[1644591293922,0.05,43803.0,43800.0,0.114299]
[1644591294720,0.05,43803.0,43801.0,0.37923]
[1644591294921,0.05,43808.0,43802.0,0.58736123]
[1644591295121,0.05,43808.0,43804.0,0.11419]
[1644591295323,0.00045442,43809.0,43805.0,0.27275374]
[1644591295722,0.00045442,43809.0,43805.0,0.26249]
[1644591295969,0.10254642,43811.0,43805.0,0.057095]
[1644591296170,0.10254642,43811.0,43806.0,0.35745457]
[1644591296369,0.05,43811.0,43806.0,0.35745457]
[1644591296568,0.05,43811.0,43806.0,0.05709287]
[1644591296771,0.65489167,43816.0,43815.0,0.26426791]
[1644591296772,0.40120385,43816.0,43815.0,0.26426791]
[1644591296972,0.48965758,43816.0,43815.0,0.26426791]
[1644591298169,0.54675358,43816.0,43815.0,0.26426791]
[1644591298372,0.91329064,43816.0,43815.0,0.26426791]
[1644591299825,0.91329064,43816.0,43815.0,0.09350006]
[1644591300025,0.057113,43813.0,43805.0,0.00073093]
[1644591300222,0.0921,43812.0,43805.0,0.00073093]
[1644591300621,0.29753662,43806.0,43805.0,0.00073093]
[1644591300822,0.33963662,43806.0,43805.0,0.00073093]
[1644591301021,0.33963662,43806.0,43800.0,0.0001]
[1644591301022,0.149211,43806.0,43800.0,0.0001]
[1644591301223,0.171336,43814.0,43800.0,0.0001]
[1644591301224,0.0004541,43811.0,43800.0,0.0001]
[1644591301921,0.0004541,43811.0,43802.0,0.38105758]
[1644591302123,0.057097,43809.0,43804.0,0.05709773]
[1644591302522,0.057097,43809.0,43804.0,0.05781355]
[1644591303123,0.114198,43809.0,43804.0,0.10781355]
[1644591303367,0.107097,43809.0,43805.0,0.057099]
[1644591303772,0.05,43808.0,43805.0,0.057099]
[1644591304670,0.12044411,43808.0,43805.0,0.057099]
[1644591304872,0.107102,43808.0,43805.0,0.057099]
[1644591305270,0.05,43808.0,43805.0,0.057099]
[1644591305871,0.08222696,43806.0,43805.0,0.057099]
[1644591306772,0.08222696,43806.0,43804.0,0.00069713]
[1644591306973,0.31155511,43805.0,43804.0,0.00069713]
[1644591307220,0.31155511,43805.0,43802.0,0.114206]
[1644591307424,0.31155511,43805.0,43803.0,0.00069714]
[1644591307620,0.66069768,43805.0,43803.0,0.00069714]
[1644591307920,0.3,43804.0,43802.0,0.10670398]
[1644591308118,0.357106,43804.0,43800.0,0.05721]
[1644591308320,0.10711,43803.0,43800.0,0.05721]
[1644591308720,0.05711,43803.0,43801.0,0.322128]
[1644591308923,0.4482,43818.0,43802.0,0.6347868]
[1644591309123,0.4482,43818.0,43804.0,0.114185]
[1644591309326,0.4482,43818.0,43805.0,0.679228]
[1644591309518,0.4482,43818.0,43811.0,0.40401561]
[1644591309721,0.4482,43818.0,43812.0,0.37921044]
[1644591309922,0.4482,43818.0,43814.0,0.322128]
[1644591310120,0.05,43823.0,43815.0,0.322128]
[1644591310319,0.05,43823.0,43815.0,0.05]
[1644591310320,0.009145,43818.0,43815.0,0.05]
[1644591310519,0.009145,43818.0,43815.0,0.00883404]
[1644591310874,0.05,43823.0,43815.0,0.057083]
[1644591311073,0.05,43823.0,43815.0,0.1712465]
[1644591311074,0.1300671,43823.0,43815.0,0.1712465]
[1644591311276,0.00069222,43818.0,43816.0,0.25928571]
[1644591311473,0.05777522,43818.0,43816.0,0.25928571]
[1644591312175,0.05,43823.0,43816.0,0.30899371]
[1644591312373,0.00069222,43819.0,43816.0,0.40899371]
[1644591312977,0.05,43823.0,43817.0,1.1]
[1644591313176,0.00276834,43827.0,43821.0,0.322128]
[1644591313375,0.001,43832.0,43823.0,0.057062]
[1644591313576,0.001,43832.0,43824.0,0.322128]
[1644591313773,0.001,43832.0,43826.0,0.322128]
[1644591313976,0.001,43832.0,43827.0,0.64052795]
[1644591314175,0.001,43832.0,43827.0,0.37443538]
[1644591314375,0.001,43832.0,43827.0,0.47443538]
[1644591314625,0.001,43832.0,43827.0,0.73421235]
[1644591314626,0.009142,43830.0,43827.0,0.73421235]
[1644591314819,0.00959603,43830.0,43827.0,0.73421235]
[1644591315021,0.00959603,43830.0,43827.0,0.77631235]
[1644591315519,0.00959603,43830.0,43827.0,1.09837035]
[1644591315719,0.002,43833.0,43828.0,0.322058]
[1644591315922,0.001,43834.0,43831.0,0.436142]
[1644591316121,0.001,43834.0,43833.0,0.322058]
[1644591316322,0.001,43834.0,43833.0,0.77331813]
[1644591318469,0.001,43834.0,43833.0,0.45126013]
[1644591319569,0.001,43834.0,43833.0,0.77331813]
[1644591320170,0.001,43834.0,43833.0,0.50126013]
[1644591320672,0.001,43834.0,43833.0,0.82331813]
[1644591320871,0.001,43834.0,43833.0,0.50126013]
[1644591321270,0.001,43834.0,43833.0,0.82331813]
[1644591322529,0.00285554,43842.0,43835.0,1.1]
[1644591322730,0.058042,43852.0,43838.0,0.0570384]
[1644591322731,0.001,43852.0,43838.0,0.0570384]
[1644591322929,0.001,43852.0,43839.0,0.664158]
[1644591322930,0.002,43848.0,43839.0,0.664158]
[1644591323332,0.002,43848.0,43841.0,0.322058]
[1644591323531,0.002,43848.0,43845.0,0.61105258]
[1644591323831,0.002,43848.0,43845.0,0.422058]
[1644591324031,0.002,43848.0,43845.0,0.479088]
[1644591324432,0.002,43848.0,43845.0,0.779088]
[1644591324631,0.002,43848.0,43845.0,0.479088]
[1644591325031,0.002,43848.0,43845.0,0.05703]
[1644591325232,0.33278123,43848.0,43847.0,0.29198785]
[1644591325434,0.33278123,43848.0,43846.0,0.057035]
[1644591325636,0.228638,43847.0,43846.0,0.057035]
[1644591325874,0.38278123,43848.0,43840.0,0.11408199]
[1644591326074,0.38278123,43848.0,43841.0,0.322058]
[1644591326275,0.38278123,43848.0,43840.0,0.11408199]
[1644591326475,0.38278123,43848.0,43845.0,0.33856792]
[1644591326674,0.38278123,43848.0,43845.0,0.39560513]
[1644591326874,0.38278123,43848.0,43843.0,0.057043]
[1644591326875,0.06608296,43846.0,43843.0,0.057043]
[1644591327077,0.228638,43845.0,43840.0,0.0007301]
[1644591327275,0.11681296,43846.0,43840.0,0.0007301]
[1644591327276,0.228638,43843.0,43840.0,0.0007301]
[1644591327576,0.0421,43842.0,43840.0,0.0007301]
[1644591327777,0.35232884,43841.0,43840.0,0.0007301]
[1644591327979,0.44442884,43841.0,43833.0,0.38589799]
[1644591328179,0.44442884,43841.0,43839.0,0.00073009]
[1644591329174,0.44442884,43841.0,43835.0,0.057059]
[1644591329375,0.0921,43841.0,43835.0,0.057059]
[1644591329626,0.149162,43841.0,43840.0,0.38065978]
[1644591329821,0.149162,43841.0,43838.0,0.057054]
[1644591330625,0.08816408,43840.0,43838.0,0.057054]
[1644591330828,0.08816408,43840.0,43837.0,0.0007301]
[1644591330829,0.46577721,43840.0,43837.0,0.0007301]
[1644591331422,0.24489972,43838.0,43837.0,0.0007301]
[1644591331624,0.24489972,43838.0,43831.0,0.11412]
[1644591331625,0.30195872,43838.0,43834.0,0.057063]
[1644591331822,0.30195872,43838.0,43836.0,0.00071553]
[1644591332427,0.270738,43837.0,43836.0,0.00071553]
[1644591332824,0.057086,43832.0,43815.0,0.2331221]
[1644591333023,0.320738,43831.0,43815.0,0.27730821]
[1644591333225,0.670738,43831.0,43805.0,0.7733]
[1644591333487,0.670738,43831.0,43813.0,0.49641193]
[1644591333488,0.2923797,43818.0,43813.0,0.49641193]
[1644591333683,0.0421,43824.0,43820.0,0.17744226]
[1644591334083,0.0421,43824.0,43821.0,0.322131]
[1644591334284,0.0421,43824.0,43820.0,0.17744226]
[1644591334685,0.08257557,43822.0,43820.0,0.23452726]
[1644591335084,0.08257557,43822.0,43820.0,0.17744226]
[1644591335487,0.37593023,43821.0,43820.0,0.17744226]
[1644591335687,0.41803023,43821.0,43820.0,0.17744226]
[1644591335885,0.0421,43821.0,43820.0,0.17744226]
[1644591336385,0.1625,43837.0,43820.0,0.76879476]
[1644591336386,0.0421,43831.0,43820.0,0.76879476]
[1644591336587,0.1625,43837.0,43823.0,0.114138]
[1644591336588,0.0421,43836.0,43823.0,0.114138]
[1644591336785,0.25032793,43832.0,43824.0,0.40302449]
[1644591336985,0.05707,43832.0,43824.0,0.66675464]
[1644591337233,0.61234,43839.0,43826.0,0.32546359]
[1644591337234,0.4982,43839.0,43826.0,0.32546359]
[1644591337530,0.4482,43839.0,43827.0,0.31116071]
[1644591337930,0.05706,43838.0,43828.0,0.322131]
[1644591338138,0.4482,43839.0,43832.0,0.29844974]
[1644591338331,0.4482,43839.0,43834.0,0.322131]
[1644591338733,0.4482,43839.0,43834.0,0.422131]
[1644591339131,0.4482,43839.0,43834.0,0.42278294]
[1644591339333,0.4482,43839.0,43834.0,0.47983194]
[1644591339528,0.4482,43839.0,43837.0,0.322131]
[1644591339932,0.4482,43839.0,43837.0,0.19356229]
[1644591340333,0.0002569,43847.0,43838.0,0.26001823]
[1644591340334,0.00065184,43841.0,43838.0,0.26001823]
[1644591340531,0.00065184,43841.0,43840.0,0.321966]
[1644591340730,0.00065184,43841.0,43840.0,0.28086034]
[1644591340974,0.00065184,43841.0,43840.0,0.1]
[1644591341375,0.27220432,43842.0,43839.0,0.47805896]
[1644591341376,0.35616027,43842.0,43839.0,0.47805896]
[1644591341572,0.08395595,43842.0,43839.0,0.47805896]
[1644591341771,0.002,43849.0,43839.0,0.57805896]
[1644591341772,0.00065184,43843.0,43839.0,0.57805896]
[1644591341971,0.00065184,43843.0,43839.0,0.83762008]
[1644591342171,0.00914,43842.0,43840.0,0.43605492]
[1644591342372,0.00914,43842.0,43841.0,0.261562]
[1644591342571,0.00460697,43849.0,43841.0,0.261562]
[1644591342572,0.0002569,43847.0,43841.0,0.261562]
[1644591342873,0.0002569,43848.0,43846.0,0.29467121]
[1644591343071,0.30269835,43849.0,43847.0,0.321966]
[1644591343271,0.30269835,43849.0,43847.0,0.1]
[1644591343472,0.3788242,43849.0,43847.0,0.1]
[1644591343772,0.3788242,43849.0,43845.0,0.11407292]
[1644591343976,0.3788242,43849.0,43844.0,0.114072]
[1644591344375,0.3788242,43849.0,43846.0,0.057036]
[1644591344629,0.07812585,43849.0,43846.0,0.057036]
[1644591345123,0.228583,43848.0,43846.0,0.057036]
[1644591345623,0.31770485,43849.0,43846.0,0.057036]
[1644591346024,0.066186,43850.0,43846.0,0.057036]
[1644591346227,0.0032569,43851.0,43846.0,0.057036]
[1644591346426,0.00071087,43850.0,43846.0,0.057036]
[1644591347024,0.33716737,43847.0,43846.0,0.057036]
[1644591347426,0.56575037,43847.0,43846.0,0.057036]
[1644591347729,0.33716737,43847.0,43846.0,0.057036]
[1644591347928,0.33716737,43847.0,43834.0,0.00069068]
[1644591347929,0.95355871,43847.0,43835.0,0.11412]
[1644591348125,0.228583,43846.0,43835.0,0.11412]
[1644591348377,0.228583,43838.0,43835.0,0.11412]
[1644591348778,0.39639998,43837.0,43835.0,0.11412]
[1644591348977,0.228583,43836.0,43835.0,0.11412]
[1644591349375,0.228583,43836.0,43834.0,0.00069062]
[1644591349776,0.43849998,43837.0,43834.0,0.00069062]
[1644591349975,0.43849998,43837.0,43832.0,0.05707]
[1644591349976,0.34272,43836.0,43832.0,0.05707]
[1644591350177,0.228583,43836.0,43833.0,0.00069058]
[1644591350476,0.228583,43836.0,43832.0,0.04776058]
[1644591350684,0.228583,43836.0,43834.0,0.05406456]
[1644591350685,0.11875642,43836.0,43834.0,0.05406456]
[1644591351081,0.16875642,43836.0,43834.0,0.05406456]
[1644591351280,0.118752,43835.0,43830.0,0.057078]
[1644591351580,0.118752,43835.0,43826.0,0.3]
[1644591351581,0.16416183,43833.0,43826.0,0.3]
[1644591351788,0.05,43827.0,43821.0,0.114171]
[1644591351977,0.160852,43832.0,43821.0,0.43761708]
[1644591351978,0.23286301,43825.0,43821.0,0.43761708]
[1644591352227,0.17583517,43824.0,43821.0,0.114171]
[1644591352426,0.057087,43823.0,43821.0,0.114171]
[1644591352626,0.175839,43823.0,43821.0,0.114171]
[1644591352824,0.175839,43823.0,43822.0,0.00024104]
[1644591353024,0.168752,43823.0,43822.0,0.00024104]
[1644591353524,0.168752,43823.0,43822.0,0.39209477]
[1644591353723,0.168752,43823.0,43821.0,0.114171]
[1644591354333,0.168752,43823.0,43821.0,0.264171]
[1644591354334,0.05,43823.0,43821.0,0.264171]
[1644591354525,0.118752,43823.0,43821.0,0.264171]
[1644591355026,0.05708317,43824.0,43822.0,0.30900407]
[1644591355226,0.118752,43823.0,43821.0,0.114171]
[1644591356071,0.67288886,43823.0,43821.0,0.114171]
[1644591356275,0.67288886,43823.0,43820.0,0.23523443]
[1644591356471,0.160852,43822.0,43820.0,0.23523443]
[1644591357070,0.05,43821.0,43820.0,0.23523443]
[1644591357272,0.0921,43821.0,43820.0,0.23452726]
[1644591357471,0.0421,43821.0,43820.0,0.38452726]
[1644591357672,0.0921,43821.0,43820.0,0.38452726]
[1644591357873,0.389221,43823.0,43820.0,0.38452726]
[1644591358071,0.05,43823.0,43820.0,0.38452726]
[1644591358274,0.118752,43822.0,43821.0,0.15]
[1644591358571,0.118752,43823.0,43821.0,0.15]
[1644591358773,0.05,43823.0,43821.0,0.207079]
[1644591358971,0.168752,43823.0,43821.0,0.207079]
[1644591359171,0.118752,43823.0,43821.0,0.207079]
[1644591360427,0.10708317,43824.0,43821.0,0.264156]
[1644591360627,0.05708317,43824.0,43821.0,0.52980945]
[1644591360829,0.05708317,43824.0,43822.0,0.371995]
[1644591361127,0.118752,43824.0,43823.0,0.32811332]
[1644591361331,0.10706569,43826.0,43823.0,0.49932832]
[1644591361527,0.05,43824.0,43823.0,0.49932832]
[1644591361727,0.10706569,43826.0,43825.0,0.46364821]
[1644591361932,0.17581769,43826.0,43825.0,0.46364821]
[1644591362130,0.17581769,43826.0,43825.0,0.87676131]
[1644591362328,0.118752,43826.0,43825.0,0.87676131]
[1644591362729,0.168752,43826.0,43825.0,0.31364821]
[1644591363128,0.168752,43826.0,43824.0,0.114141]
[1644591363575,0.10707751,43826.0,43824.0,0.114141]
[1644591363875,0.11414547,43830.0,43827.0,0.27123402]
[1644591363876,0.118752,43829.0,43827.0,0.27123402]
[1644591364074,0.118752,43829.0,43827.0,0.32831202]
[1644591364776,0.5742137,43829.0,43827.0,0.21415502]
[1644591364973,0.43973373,43828.0,43827.0,0.21415502]
[1644591365175,0.43973373,43828.0,43821.0,0.114168]
[1644591365176,0.8,43828.0,43821.0,0.114168]
[1644591365379,0.8,43828.0,43800.0,0.0001]
[1644591365380,0.05,43822.0,43800.0,0.0001]
[1644591365579,1.1,43825.0,43800.0,0.0001]
[1644591365580,0.24244036,43804.0,43800.0,0.0001]
[1644591365977,0.0421,43803.0,43800.0,0.0001]
[1644591366278,0.3798092,43802.0,43800.0,0.0001]
[1644591366478,0.0421,43801.0,43800.0,0.0001]
[1644591366877,0.0421,43801.0,43800.0,0.27219303]
[1644591367333,0.0421,43801.0,43800.0,0.057216]
[1644591368333,0.0859994,43799.0,43798.0,0.00021013]
[1644591368533,0.05712171,43798.0,43793.0,0.057122]
[1644591368733,0.09922171,43798.0,43792.0,0.00294046]
[1644591368936,0.19027188,43793.0,43792.0,0.00273033]
[1644591369134,0.19027188,43793.0,43792.0,0.00294046]
[1644591369333,0.0421,43793.0,43792.0,0.00273033]
[1644591369638,0.08671435,43792.0,43791.0,0.01]
[1644591369835,0.12881435,43792.0,43791.0,0.01]
[1644591370033,0.12881435,43792.0,43790.0,0.00068253]
[1644591370536,0.62875285,43791.0,43790.0,0.00068253]
[1644591370735,0.62875285,43791.0,43785.0,0.00021013]
[1644591370736,1.21427821,43790.0,43785.0,0.00021013]
[1644591370972,1.21427821,43790.0,43789.0,0.0006861]
[1644591371175,1.1,43788.0,43782.0,0.00274481]
[1644591371374,0.31821367,43783.0,43782.0,0.00274481]
[1644591371576,0.2900254,43783.0,43770.0,0.251861]
[1644591371773,0.5614924,43783.0,43770.0,0.309009]
[1644591372472,0.5614924,43783.0,43771.0,0.052148]
[1644591372672,0.40083186,43782.0,43771.0,0.33731854]
[1644591372873,0.40083186,43782.0,43771.0,0.33753459]
[1644591372874,0.057144,43779.0,43771.0,0.33753459]
[1644591373074,0.057144,43779.0,43777.0,0.30603895]
[1644591373477,0.0421,43781.0,43779.0,0.171432]
[1644591373677,0.0421,43792.0,43780.0,0.472044]
[1644591373876,0.0421,43792.0,43786.0,0.15]
[1644591374377,0.05711982,43789.0,43780.0,0.00021605]
[1644591374628,0.05711982,43789.0,43782.0,0.057131]
[1644591375024,0.06762041,43783.0,43780.0,0.00090733]
[1644591375223,0.06762041,43783.0,43780.0,0.00069128]
[1644591375422,0.12475606,43783.0,43780.0,0.00069128]
[1644591375622,0.05713565,43783.0,43781.0,0.057132]
[1644591376526,0.05713565,43783.0,43779.0,0.17233926]
[1644591376527,0.33523427,43782.0,43779.0,0.17233926]
[1644591376725,0.11542258,43781.0,43779.0,0.17212321]
[1644591376924,0.69763935,43780.0,43779.0,0.17212321]
[1644591377123,0.69763935,43780.0,43779.0,0.171432]
[1644591377327,0.68199711,43780.0,43779.0,0.171432]
[1644591378025,0.31755475,43780.0,43779.0,0.171432]
[1644591378985,0.41755475,43780.0,43779.0,0.171432]
[1644591379386,0.157147,43780.0,43779.0,0.171432]
[1644591379786,0.157147,43780.0,43772.0,0.00021605]
[1644591379787,1.1,43779.0,43772.0,0.00021605]
[1644591379990,0.057153,43775.0,43771.0,0.00021605]
[1644591380185,0.057153,43775.0,43768.0,0.00021605]
[1644591380186,0.06413563,43774.0,43768.0,0.00021605]
[1644591380387,0.06413563,43774.0,43765.0,0.00021605]
[1644591380388,0.25894289,43774.0,43765.0,0.00021605]
[1644591380590,0.25894289,43774.0,43762.0,0.00021605]
[1644591380591,0.33293543,43765.0,43762.0,0.00021605]
[1644591380789,0.33293543,43765.0,43749.0,0.514]
[1644591380790,1.1421,43764.0,43749.0,0.514]
[1644591380986,0.05717518,43761.0,43742.0,0.79947944]
[1644591381190,0.05717518,43761.0,43745.0,0.342957]
[1644591381191,0.05,43759.0,43745.0,0.342957]
[1644591381389,0.27887951,43758.0,43745.0,0.114359]
[1644591381588,1.1,43750.0,43740.0,0.114362]
[1644591381789,1.1,43750.0,43735.0,0.00086876]
[1644591381790,0.0421,43749.0,43735.0,0.00086876]
[1644591381988,0.1421,43749.0,43735.0,0.00086876]
[1644591382235,1.15,43746.0,43735.0,0.00086876]
[1644591382434,0.0421,43745.0,43735.0,0.00086876]
[1644591382642,0.21282687,43740.0,43735.0,0.00086876]
[1644591382836,0.0421,43745.0,43735.0,0.00086876]
[1644591382837,0.1,43745.0,43735.0,0.00086876]
[1644591383035,0.05720204,43742.0,43735.0,0.00086876]
[1644591383235,0.39099537,43741.0,43735.0,0.00086876]
[1644591383436,0.0421,43741.0,43735.0,0.00086876]
[1644591383637,0.1421,43741.0,43735.0,0.00086876]
[1644591383836,0.1421,43741.0,43738.0,0.34602333]
[1644591384037,0.18189375,43740.0,43739.0,0.057192]
[1644591384440,0.0421,43741.0,43739.0,0.679236]
[1644591384639,0.05,43746.0,43740.0,0.28209049]
[1644591384838,0.0421,43750.0,43735.0,0.00086876]
[1644591385037,0.24133564,43744.0,43738.0,0.00068828]
[1644591385437,0.07701104,43739.0,43738.0,0.00068828]
[1644591385637,0.15457123,43744.0,43742.0,0.34291013]
[1644591385882,0.15457123,43744.0,43738.0,0.05787428]
[1644591386083,0.15457123,43744.0,43735.0,0.42086876]
[1644591386283,0.20457123,43744.0,43741.0,0.00068071]
[1644591386484,0.22900583,43742.0,43741.0,0.00068071]
[1644591386685,0.22900583,43742.0,43736.0,0.29568071]
[1644591386885,0.057197,43740.0,43735.0,0.00086876]
[1644591387086,0.05720046,43739.0,43735.0,0.00086876]
[1644591387286,1.1,43736.0,43721.0,0.20695668]
[1644591387488,1.1,43736.0,43721.0,0.00060528]
[1644591387489,0.33558809,43723.0,43721.0,0.00060528]
[1644591387685,0.3421,43735.0,43725.0,0.83900338]
[1644591387686,0.03758,43735.0,43725.0,0.83900338]
[1644591387888,0.23817351,43728.0,43725.0,1.17202483]
[1644591388085,0.03758,43735.0,43725.0,1.17202483]
[1644591388086,0.14255616,43727.0,43725.0,1.17202483]
[1644591388285,0.14255616,43727.0,43725.0,0.83900338]
[1644591389291,0.05721361,43727.0,43726.0,0.622044]
[1644591389812,0.17160138,43741.0,43725.0,1.16994606]
[1644591389813,0.05719534,43733.0,43728.0,0.171579]
[1644591389829,0.15,43740.0,43730.0,0.057191]
[1644591389830,0.05,43740.0,43730.0,0.057191]
[1644591390024,3.22736484,43747.0,43737.0,0.15]
[1644591390224,0.07920097,43739.0,43736.0,0.114363]
[1644591390427,0.07920097,43739.0,43725.0,0.78178738]
[1644591390627,0.0421,43738.0,43725.0,0.78178738]
[1644591390823,0.05722083,43735.0,43725.0,0.78178738]
[1644591391023,0.24952421,43733.0,43725.0,0.78178738]
[1644591391225,0.28462375,43726.0,43725.0,0.78178738]
[1644591391425,0.0866325,43732.0,43725.0,0.78178738]
[1644591391426,0.25830373,43732.0,43725.0,0.78178738]
[1644591391627,0.05,43727.0,43725.0,0.78178738]
[1644591391826,0.30108173,43732.0,43725.0,0.78178738]
[1644591391827,0.05721635,43726.0,43725.0,0.78178738]
[1644591392828,0.41232037,43726.0,43725.0,0.78178738]
[1644591393228,0.46953737,43726.0,43721.0,0.00060528]
[1644591393483,0.29562462,43724.0,43721.0,0.00060528]
[1644591393682,0.0421,43723.0,43721.0,0.00060528]
[1644591393885,0.0421,43723.0,43700.0,0.0001]
[1644591393886,0.57867412,43721.0,43700.0,0.0001]
[1644591394085,0.4,43719.0,43700.0,0.0001]
[1644591394283,0.057249,43707.0,43700.0,0.0001]
[1644591394483,0.0421,43706.0,43702.0,0.31128286]
[1644591394684,0.114498,43708.0,43707.0,0.198698]
[1644591395187,0.0421,43708.0,43707.0,0.198698]
[1644591395389,0.05724135,43709.0,43707.0,0.58454869]
[1644591395590,0.1,43718.0,43707.0,0.58454869]
[1644591395786,0.37181766,43725.0,43707.0,0.58454869]
[1644591395986,0.0421,43717.0,43707.0,0.69899069]
[1644591396186,0.37181766,43725.0,43710.0,0.00069174]
[1644591396187,0.05722458,43713.0,43710.0,0.00069174]
[1644591396387,0.0421,43712.0,43710.0,0.00069174]
[1644591397226,0.0421,43712.0,43708.0,0.00021563]
[1644591397426,0.05722458,43713.0,43709.0,0.00069175]
[1644591397632,0.17168301,43713.0,43709.0,0.05792275]
[1644591397827,0.05,43713.0,43712.0,0.05]
[1644591398232,0.17168764,43722.0,43711.0,0.26316062]
[1644591398427,0.17168764,43722.0,43711.0,0.37761062]
[1644591398626,0.07181766,43715.0,43713.0,0.057225]
[1644591398828,0.07181766,43715.0,43711.0,0.11466563]
[1644591399026,0.25751342,43719.0,43711.0,0.11466563]
[1644591399230,0.33834773,43724.0,43711.0,0.11445]
[1644591399427,0.05,43719.0,43711.0,0.11445]
[1644591399629,0.05722122,43715.0,43712.0,0.27225256]
[1644591399829,0.05722122,43715.0,43713.0,0.00067802]
[1644591400227,0.27969853,43715.0,43713.0,0.00067802]